[Event "58th Akiba Rubinstein A 2022"]
[Site "Polanica-Zdroj"]
[Date "2022.08.16"]
[Round "4.15"]
[White "Wolanski, Michal"]
[Black "Siekanska, Zuzanna"]
[Result "1-0"]
[ECO "A17"]
[WhiteElo "2005"]
[BlackElo "1712"]
[Annotator "NA RC"]
[PlyCount "155"]
[EventDate "2022.08.13"]
[EventCountry "POL"]
[SourceTitle "playchess.com"]
[Source "ChessBase"]
[SourceQuality "1"]
[TimeControl "40/5400+30:1800+30"]

1. c4 {[%emt 0:00:10]} e6 {[%emt 0:00:12]} 2. Nc3 {[%emt 0:00:10]} Nf6 {[%emt 0:00:05]} 3. Nf3 {[%emt 0:00:07]} d5 {[%emt 0:00:15]} 4. e3 {[%emt 0:00:06]} Be7 {[%emt 0:00:15]} 5. b3 {[%emt 0:00:08]} c5 {[%emt 0:00:54]} 6. Bb2 {[%emt 0:00:40]} Nc6 {[%emt 0:00:12]} 7. cxd5 {[%emt 0:02:37]} exd5 {[%emt 0:00:08]} 8. d4 {[%emt 0:00:14]} O-O {[%emt 0:00:29]} 9. Be2 {[%emt 0:00:18]} Re8 {[%emt 0:01:10]} 10. O-O {[%emt 0:00:12]} cxd4 {[%emt 0:03:38]} 11. Nxd4 {[%emt 0:00:19]} Bd6 {[%emt 0:00:45]} 12. Rc1 {[%emt 0:06:06]} Ne5 {[%emt 0:01:58]} 13. Ncb5 {[%emt 0:08:31]} Bb8 {[%emt 0:01:24]} 14. Qc2 {[%emt 0:03:22]} Nfg4 {[%emt 0:10:12]} 15. Nc7 {[%emt 0:22:32]} Nc6 {[%emt 0:09:57]} 16. Nxe8 {[%emt 0:17:28]} Bxh2+ {[%emt 0:15:57]} 17. Kh1 {[%emt 0:00:02]} Nxd4 {[%emt 0:01:52]} 18. Nf6+ {[%emt 0:01:35]} Nxf6 {[%emt 0:08:52]} 19. Bxd4 {[%emt 0:00:21]} Bd6 {[%emt 0:01:38]} 20. Bf3 {[%emt 0:08:12]} Ne4 {[%emt 0:03:21]} 21. g3 {[%emt 0:01:55]} Bf5 {[%emt 0:00:28]} 22. Qb2 {[%emt 0:02:08]} Qg5 {[%emt 0:04:24]} 23. Be5 {[%emt 0:02:15]} Bxe5 {[%emt 0:02:32]} 24. Qxe5 {[%emt 0:00:20]} Nd2 {[%emt 0:00:32]} 25. Qxd5 {[%emt 0:04:51]} Nxf3 {[%emt 0:15:21]} 26. Qxf3 {[%emt 0:00:19]} Qg6 {[%emt 0:00:24]} 27. Qf4 {[%emt 0:01:50]} Qh5+ {[%emt 0:03:40]} 28. Kg1 {[%emt 0:02:09]} Bd3 {[%emt 0:01:22]} 29. Rfe1 {[%emt 0:01:31]} Be2 {[%emt 0:05:08]} 30. Kg2 {[%emt 0:00:49]} g5 {[%emt 0:02:04]} 31. Qf6 {[%emt 0:00:43]} Bb5 {[%emt 0:03:58]} 32. Rc5 {[%emt 0:01:44]} Bc6+ {[%emt 0:00:16]} 33. f3 {[%emt 0:00:19]} h6 {[%emt 0:01:51]} 34. Rh1 {[%emt 0:00:25]} Qg6 {[%emt 0:00:19]} 35. Qxg6+ {[%emt 0:00:52]} fxg6 {[%emt 0:00:06]} 36. Rxh6 {[%emt 0:00:31]} Kg7 {[%emt 0:00:04]} 37. Rh1 {[%emt 0:04:42]} g4 {[%emt 0:00:16]} 38. e4 {[%emt 0:00:09]} Rd8 {[%emt 0:00:19]} 39. Rf1 {[%emt 0:01:51]} Rd4 {[%emt 0:02:26]} 40. Rc4 {[%emt 0:00:00]} Rd7 {[%emt 0:00:00]} 41. Rf2 {[%emt 0:03:33]} gxf3+ {[%emt 0:02:33]} 42. Kxf3 {[%emt 0:01:45]} Rd3+ {[%emt 0:00:20]} 43. Kf4 {[%emt 0:01:49]} Kf6 {[%emt 0:01:24]} 44. Rf3 {[%emt 0:01:52]} Rd1 {[%emt 0:02:43]} 45. Rfc3 {[%emt 0:02:12]} g5+ {[%emt 0:01:11]} 46. Kf3 {[%emt 0:01:27]} Rf1+ {[%emt 0:00:48]} 47. Ke2 {[%emt 0:09:09]} Rg1 {[%emt 0:00:36]} 48. a4 {[%emt 0:00:44]} g4 {[%emt 0:02:16]} 49. Kf2 {[%emt 0:01:08]} Rb1 {[%emt 0:01:47]} 50. Re3 {[%emt 0:01:24]} Rb2+ {[%emt 0:00:29]} 51. Ke1 {[%emt 0:00:13]} Ke5 {[%emt 0:00:45]} 52. Kd1 {[%emt 0:02:26]} Rg2 {[%emt 0:00:42]} 53. Rc2 {[%emt 0:03:09]} Rxc2 {[%emt 0:01:09]} 54. Kxc2 {[%emt 0:00:07]} Bxe4+ {[%emt 0:00:04]} 55. Kc3 {[%emt 0:00:09]} Kd5 {[%emt 0:00:41]} 56. Re1 {[%emt 0:00:20]} Bf3 {[%emt 0:00:58]} 57. Re7 {[%emt 0:00:11]} Kc5 {[%emt 0:01:01]} 58. b4+ {[%emt 0:00:28]} Kc6 {[%emt 0:00:37]} 59. Kd4 {[%emt 0:01:30]} Bd1 {[%emt 0:01:07]} 60. a5 {[%emt 0:00:24]} Bf3 {[%emt 0:00:16]} 61. Re5 {[%emt 0:00:13]} Kd6 {[%emt 0:00:47]} 62. Rg5 {[%emt 0:00:38]} Ke6 {[%emt 0:01:32]} 63. Ke3 {[%emt 0:01:10]} Kd6 {[%emt 0:00:18]} 64. Kf4 {[%emt 0:00:24]} Kc6 {[%emt 0:00:25]} 65. Rxg4 {[%emt 0:02:37]} Bxg4 {[%emt 0:00:15]} 66. Kxg4 {[%emt 0:00:04]} Kb5 {[%emt 0:00:07]} 67. Kf4 {[%emt 0:00:23]} Kxb4 {[%emt 0:00:14]} 68. g4 {[%emt 0:00:04]} Kxa5 {[%emt 0:00:17]} 69. g5 {[%emt 0:00:06]} b5 {[%emt 0:00:07]} 70. g6 {[%emt 0:00:05]} b4 {[%emt 0:00:31]} 71. g7 {[%emt 0:00:05]} Ka4 {[%emt 0:00:32]} 72. g8=Q {[%emt 0:00:15]} a5 {[%emt 0:00:15]} 73. Qa2+ {[%emt 0:00:23]} Kb5 {[%emt 0:00:06]} 74. Ke4 {[%emt 0:00:18]} a4 {[%emt 0:00:28]} 75. Qd5+ {[%emt 0:00:22]} Kb6 {[%emt 0:00:06]} 76. Qc4 {[%emt 0:00:09]} Ka5 {[%emt 0:00:13]} 77. Qc5+ {[%emt 0:00:07]} Ka6 {[%emt 0:00:05]} 78. Qxb4 {[%emt 0:00:08]} 1-0

[Event "58th Akiba Rubinstein A 2022"]
[Site "Polanica-Zdroj"]
[Date "2022.08.16"]
[Round "4.16"]
[White "Kazmierowski, Tymon"]
[Black "Walkusz, Witoslaw"]
[Result "1/2-1/2"]
[ECO "A05"]
[WhiteElo "1961"]
[BlackElo "2001"]
[Annotator "NA RC"]
[PlyCount "116"]
[EventDate "2022.08.13"]
[EventCountry "POL"]
[SourceTitle "playchess.com"]
[Source "ChessBase"]
[SourceQuality "1"]
[TimeControl "40/5400+30:1800+30"]

1. Nf3 {[%emt 0:00:04]} Nf6 {[%emt 0:00:43]} 2. g3 {[%emt 0:00:10]} g6 {[%emt 0:00:09]} 3. b3 {[%emt 0:00:06]} Bg7 {[%emt 0:00:11]} 4. Bb2 {[%emt 0:00:05]} d6 {[%emt 0:00:39]} 5. d4 {[%emt 0:00:27]} O-O {[%emt 0:00:22]} 6. Bg2 {[%emt 0:00:06]} Nc6 {[%emt 0:02:29]} 7. O-O {[%emt 0:00:56]} Bf5 {[%emt 0:03:23]} 8. Nbd2 {[%emt 0:03:16]} Qd7 {[%emt 0:06:30]} 9. Re1 d5 {[%emt 0:13:28]} 10. Ne5 {[%emt 0:16:04]} Nxe5 {[%emt 0:06:37]} 11. dxe5 {[%emt 0:02:06]} Ng4 {[%emt 0:00:10]} 12. Nf3 {[%emt 0:00:14]} Qe6 {[%emt 0:03:04]} 13. Ng5 {[%emt 0:28:25]} Qb6 {[%emt 0:02:48]} 14. e3 {[%emt 0:07:30]} Nxe5 {[%emt 0:10:33]} 15. Bxd5 {[%emt 0:08:21]} h6 {[%emt 0:08:38]} 16. Bxe5 Bxe5 {[%emt 0:01:33]} 17. Nxf7 {[%emt 0:19:22]} Bxa1 {[%emt 0:07:13]} 18. Nxh6+ {[%emt 0:00:10]} Kh7 {[%emt 0:00:51]} 19. Nxf5 {[%emt 0:03:33]} Bc3 {[%emt 0:04:21]} 20. Nd4 {[%emt 0:03:48]} Qa5 {[%emt 0:06:26]} 21. Ne6 {[%emt 0:02:05]} Bxe1 {[%emt 0:00:47]} 22. Qd4 {[%emt 0:00:07]} Bxf2+ {[%emt 0:01:35]} 23. Kg2 {[%emt 0:00:09]} Rf6 {[%emt 0:03:37]} 24. Ng5+ {[%emt 0:02:36]} Kg7 {[%emt 0:00:17]} 25. Ne6+ {[%emt 0:00:19]} Kf7 {[%emt 0:04:38]} 26. Qe5 {[%emt 0:02:02]} Be1 {[%emt 0:04:07]} 27. Nxc7+ Kf8 {[%emt 0:02:09]} 28. Nxa8 {[%emt 0:01:11]} Qd8 {[%emt 0:01:36]} 29. Nc7 {[%emt 0:00:24]} Qd6 {[%emt 0:00:19]} 30. Ne6+ {[%emt 0:00:37]} Ke8 {[%emt 0:00:07]} 31. Qxd6 {[%emt 0:00:48]} exd6 {[%emt 0:00:06]} 32. Nf4 {[%emt 0:00:04]} b6 {[%emt 0:00:54]} 33. h4 {[%emt 0:00:21]} Bd2 {[%emt 0:01:51]} 34. Kf3 {[%emt 0:00:05]} Kf8 {[%emt 0:01:03]} 35. g4 {[%emt 0:00:22]} Kg7 {[%emt 0:00:34]} 36. g5 {[%emt 0:00:47]} Rf5 {[%emt 0:00:46]} 37. Be4 {[%emt 0:00:35]} Re5 {[%emt 0:00:39]} 38. Bxg6 {[%emt 0:01:09]} Rxe3+ {[%emt 0:01:08]} 39. Kg4 {[%emt 0:00:06]} Re1 {[%emt 0:00:34]} 40. Bd3 {[%emt 0:00:00]} Rg1+ 41. Kf5 {[%emt 0:02:36]} Bxf4 {[%emt 0:06:14]} 42. Kxf4 {[%emt 0:04:15]} Rh1 {[%emt 0:00:08]} 43. Kg4 {[%emt 0:06:36]} Rg1+ {[%emt 0:00:40]} 44. Kf5 {[%emt 0:00:34]} Rh1 {[%emt 0:01:30]} 45. Kg4 {[%emt 0:12:03]} Rg1+ {[%emt 0:00:08]} 46. Kf4 {[%emt 0:00:04]} Rh1 {[%emt 0:00:12]} 47. Kg3 {[%emt 0:00:15]} Rg1+ {[%emt 0:00:56]} 48. Kh2 {[%emt 0:00:10]} Rg4 {[%emt 0:00:17]} 49. Kh3 {[%emt 0:00:04]} Rg1 {[%emt 0:00:14]} 50. Bf5 {[%emt 0:01:26]} b5 {[%emt 0:00:45]} 51. Kh2 {[%emt 0:00:37]} Re1 {[%emt 0:03:24]} 52. Bd3 {[%emt 0:03:16]} b4 {[%emt 0:00:39]} 53. Kg2 {[%emt 0:00:32]} d5 {[%emt 0:04:48]} 54. h5 {[%emt 0:02:18]} Re5 {[%emt 0:00:25]} 55. h6+ {[%emt 0:00:02]} Kh8 {[%emt 0:02:12]} 56. g6 {[%emt 0:00:06]} Rh5 {[%emt 0:00:11]} 57. h7 {[%emt 0:00:05]} Kg7 {[%emt 0:03:27]} 58. Kf3 {[%emt 0:00:19]} Re5 {[%emt 0:07:12]} 1/2-1/2

[Event "58th Akiba Rubinstein A 2022"]
[Site "Polanica-Zdroj"]
[Date "2022.08.17"]
[Round "5.1"]
[White "Siekanska, Maria"]
[Black "Cyborowski, Lukasz"]
[Result "0-1"]
[ECO "D31"]
[WhiteElo "1964"]
[BlackElo "2483"]
[Annotator "TA"]
[PlyCount "53"]
[EventDate "2022.08.13"]
[EventCountry "POL"]
[SourceTitle "playchess.com"]
[Source "ChessBase"]
[SourceQuality "1"]
[TimeControl "40/5400+30:1800+30"]

{[%evp 11,53,14,10,6,19,14,25,21,27,-8,0,-4,0,-200,-195,-272,-271,-216,-266,-288,-93,-258,-262,-285,-241,-337,-317,-306,-288,-490,-458,-478,-469,-1402,-1404,-1381,-1394,-1381,-1381,-1311,-1294,-1289,-1227,-1949]} 1. d4 {[%emt 0:00:02]} d5 {[%emt 0:00:43]} 2. c4 {[%emt 0:00:14]} e6 {[%emt 0:00:27]} 3. Nc3 {[%emt 0:00:33]} Be7 {[%emt 0:00:57]} 4. cxd5 {[%emt 0:01:51]} exd5 {[%emt 0:00:06]} 5. Bf4 {[%emt 0:00:22]} c6 {[%emt 0:00:05][%cal Bc7c6,Bc6c5][%mdl 32]} 6. e3 {[%emt 0:00:34]} Bf5 {[%emt 0:00:12]} 7. f3 {[%emt 0:03:51] D31: Queen's Gambit Declined: Semi-Slav without ...Nf6 (+ Marshall Gambit and Noteboom) and Exchange Variation lines without ...Nf6.} Nf6 {[%emt 0:03:41] Inhibits e4.} 8. g4 {[%emt 0:00:19]} Be6 {[%emt 0:01:14]} 9. Nge2 {[%emt 0:01:08] White has an edge.} O-O {[%emt 0:07:08] [#]} 10. Ng3 $146 {[%emt 0:07:34]} ({Predecessor:} 10. Qd2 c5 11. dxc5 Bxc5 12. O-O-O Nc6 13. Kb1 Rc8 14. h4 Qa5 15. Rc1 d4 16. exd4 {0-1 (35) Backelin,R (2290)-Ahlander,B (2426) Stockholm 2002}) 10... c5 {[%emt 0:01:28]} 11. Qd2 {[%emt 0:07:02]} Nc6 {[%emt 0:05:13][%cal Of6g4]} 12. Kf2 $2 {[%emt 0:03:25] [#]} (12. O-O-O $11) 12... g5 $1 $19 {[%emt 0:13:51]} 13. Bxg5 {[%emt 0:25:55] [#]} (13. Be5 $142) 13... Nxg4+ $1 {[%emt 0:04:36][%mdl 576] Discovered Attack} 14. fxg4 {[%emt 0:00:08] Black must now prevent Bxe7.} Bxg5 {[%emt 0:00:05]} 15. h4 {[%emt 0:00:25]} Bf6 {[%emt 0:02:54]} (15... Bxh4 $19 {has better winning chances. aiming for ...Qg5.} 16. Bd3 h5) 16. Nce2 $2 {[%emt 0:09:35]} (16. dxc5 $17 d4 17. exd4) 16... Bxg4 {[%emt 0:02:54]} 17. dxc5 {[%emt 0:04:13]} Be5 {[%emt 0:04:26] A strong pair of Bishops.} (17... Bxh4 18. Nf4 $17) 18. Bg2 {[%emt 0:03:48]} Kh8 {[%emt 0:06:46] Threatens to win with ...Qf6+.} ({Stronger than} 18... Qf6+ 19. Kg1 $17) 19. Raf1 {[%emt 0:07:42]} Rg8 {[%emt 0:05:39]} 20. Qxd5 $2 {[%emt 0:03:17]} (20. Qd3 {was called for.}) 20... Qe7 {[%emt 0:01:54] Hoping for ...Rad8. Black is clearly winning.} 21. Qc4 {[%emt 0:02:12]} Rad8 {[%emt 0:01:18]} 22. Bxc6 {[%emt 0:01:59]} (22. Ne4 $142 f5 23. Nd6 Bxe2 24. Nf7+ Qxf7 25. Qxf7) 22... Bxg3+ {[%emt 0:02:29]} 23. Nxg3 {[%emt 0:00:42]} Rd2+ {[%emt 0:00:05]} 24. Ne2 {[%emt 0:00:13]} Rxe2+ {[%emt 0:00:16]} 25. Qxe2 {[%emt 0:00:19]} Bxe2 {[%emt 0:00:05]} 26. Kxe2 {[%emt 0:00:10]} bxc6 {[%emt 0:00:05]} 27. Kd3 {Black took control after the opening.  Weighted Error Value: White=0.73/Black=0.15 (very precise)} 0-1

[Event "58th Akiba Rubinstein A 2022"]
[Site "Polanica-Zdroj"]
[Date "2022.08.17"]
[Round "5.2"]
[White "Koziorowicz, Michal"]
[Black "Kowalczyk, Rafal"]
[Result "1-0"]
[ECO "E46"]
[WhiteElo "2231"]
[BlackElo "2239"]
[Annotator "NA RC"]
[PlyCount "179"]
[EventDate "2022.08.13"]
[EventCountry "POL"]
[SourceTitle "playchess.com"]
[Source "ChessBase"]
[SourceQuality "1"]
[TimeControl "40/5400+30:1800+30"]

1. d4 {[%emt 0:00:13]} Nf6 {[%emt 0:00:38]} 2. c4 {[%emt 0:00:16]} e6 {[%emt 0:01:10]} 3. Nc3 {[%emt 0:00:07]} Bb4 {[%emt 0:03:01]} 4. e3 {[%emt 0:00:16]} O-O {[%emt 0:00:26]} 5. Bd2 {[%emt 0:01:03]} b6 {[%emt 0:02:21]} 6. Nf3 {[%emt 0:01:28]} Bb7 {[%emt 0:00:53]} 7. Bd3 {[%emt 0:00:11]} Bxc3 {[%emt 0:10:17]} 8. Bxc3 {[%emt 0:11:09]} Ne4 {[%emt 0:01:18]} 9. Bxe4 {[%emt 0:03:09]} Bxe4 {[%emt 0:00:12]} 10. d5 {[%emt 0:00:08]} c5 {[%emt 0:22:15]} 11. Nd2 {[%emt 0:04:26]} exd5 {[%emt 0:27:44]} 12. Nxe4 {[%emt 0:00:18]} dxe4 {[%emt 0:00:08]} 13. Qg4 {[%emt 0:00:11]} f6 {[%emt 0:00:07]} 14. Qxe4 {[%emt 0:01:10]} Nc6 {[%emt 0:00:09]} 15. O-O-O {[%emt 0:00:55]} Qc7 {[%emt 0:00:48]} 16. h4 {[%emt 0:09:50]} Rae8 {[%emt 0:00:46]} 17. Qd5+ {[%emt 0:02:56]} Rf7 {[%emt 0:00:11]} 18. Kb1 {[%emt 0:01:05]} Ne5 {[%emt 0:02:05]} 19. Qe4 {[%emt 0:06:33]} Re6 {[%emt 0:08:56]} 20. h5 {[%emt 0:06:50]} Nc6 {[%emt 0:07:03]} 21. Qh4 {[%emt 0:01:52]} h6 {[%emt 0:01:34]} 22. Rd2 {[%emt 0:07:32]} a6 {[%emt 0:00:44]} 23. Rhd1 {[%emt 0:04:42]} b5 {[%emt 0:01:47]} 24. b3 {[%emt 0:00:11]} Ne5 {[%emt 0:03:34]} 25. Rd5 {[%emt 0:01:37]} Rfe7 {[%emt 0:02:08]} 26. Qf4 {[%emt 0:04:36]} Qc6 {[%emt 0:00:35]} 27. Ka1 {[%emt 0:00:51]} Nf7 {[%emt 0:00:50]} 28. Qf5 {[%emt 0:03:13]} d6 {[%emt 0:00:07]} 29. Qc2 {[%emt 0:08:37]} Re4 {[%emt 0:00:51]} 30. Bd2 {[%emt 0:01:29]} Rg4 {[%emt 0:02:09]} 31. g3 {[%emt 0:00:42]} Ne5 {[%emt 0:00:34]} 32. f4 {[%emt 0:01:58]} Nf7 {[%emt 0:00:33]} 33. Be1 {[%emt 0:01:58]} Qc8 {[%emt 0:00:30]} 34. Bf2 {[%emt 0:01:47]} Qe6 {[%emt 0:00:06]} 35. Qd3 {[%emt 0:01:32]} b4 {[%emt 0:00:14]} 36. Re1 {[%emt 0:01:23]} Qe4 {[%emt 0:01:07]} 37. Qxe4 {[%emt 0:00:32]} Rxe4 {[%emt 0:00:02]} 38. Kb2 {[%emt 0:00:09]} g6 {[%emt 0:00:52]} 39. hxg6 {[%emt 0:00:20]} Rxg6 {[%emt 0:00:02]} 40. Ra1 {[%emt 0:00:00]} Re7 {[%emt 0:00:00]} 41. a3 {[%emt 0:02:26]} a5 {[%emt 0:02:47]} 42. axb4 {[%emt 0:00:05]} axb4 {[%emt 0:00:09]} 43. Kc2 {[%emt 0:06:02]} Kh7 {[%emt 0:01:11]} 44. Kd3 {[%emt 0:00:55]} Rg8 {[%emt 0:00:57]} 45. Ke2 {[%emt 0:01:15]} Rc8 {[%emt 0:12:32]} 46. g4 {[%emt 0:00:50]} Rcc7 {[%emt 0:00:16]} 47. Bh4 {[%emt 0:03:34]} Kg7 {[%emt 0:01:05]} 48. Kf3 {[%emt 0:02:10]} Re6 {[%emt 0:06:29]} 49. Rf5 {[%emt 0:01:43]} Nh8 {[%emt 0:01:03]} 50. Ra6 {[%emt 0:02:44]} Rce7 {[%emt 0:03:35]} 51. Bf2 {[%emt 0:00:47]} Nf7 {[%emt 0:00:05]} 52. Rd5 {[%emt 0:00:28]} Re8 {[%emt 0:00:15]} 53. Rd3 {[%emt 0:01:55]} R6e7 {[%emt 0:00:18]} 54. Bg3 {[%emt 0:00:56]} Re4 {[%emt 0:01:55]} 55. Ra7 {[%emt 0:01:28]} R4e7 {[%emt 0:01:02]} 56. Ra6 {[%emt 0:01:25]} Re4 {[%emt 0:00:07]} 57. Bf2 {[%emt 0:00:02]} R4e6 {[%emt 0:02:22]} 58. Be1 {[%emt 0:00:41]} Rh8 {[%emt 0:03:19]} 59. Rd5 {[%emt 0:00:06]} Rhe8 {[%emt 0:00:13]} 60. Bd2 {[%emt 0:00:08]} Re4 {[%emt 0:00:20]} 61. Bc1 {[%emt 0:00:31]} R4e7 {[%emt 0:00:54]} 62. Ra2 {[%emt 0:00:32]} Re4 {[%emt 0:01:13]} 63. Re2 {[%emt 0:00:40]} Kg6 {[%emt 0:00:34]} 64. Rf5 {[%emt 0:01:11]} Kg7 {[%emt 0:00:27]} 65. Bb2 {[%emt 0:00:10]} R4e6 {[%emt 0:00:08]} 66. Rd5 {[%emt 0:02:29]} R8e7 {[%emt 0:00:27]} 67. Re1 {[%emt 0:00:39]} Re8 {[%emt 0:00:19]} 68. Rd3 {[%emt 0:00:16]} Ra8 {[%emt 0:00:36]} 69. Ke2 {[%emt 0:01:11]} Re4 {[%emt 0:00:54]} 70. Rd5 {[%emt 0:00:46]} Rae8 {[%emt 0:00:10]} 71. Kd2 {[%emt 0:00:32]} Kg6 {[%emt 0:00:53]} 72. Re2 {[%emt 0:01:00]} R4e7 {[%emt 0:00:25]} 73. Rf5 {[%emt 0:01:02]} Re6 {[%emt 0:00:05]} 74. Rh2 {[%emt 0:00:33]} Kg7 {[%emt 0:01:02]} 75. Rh3 {[%emt 0:00:21]} Rc8 {[%emt 0:00:32]} 76. Rfh5 {[%emt 0:00:32]} Kf8 {[%emt 0:00:29]} 77. g5 {[%emt 0:01:21]} fxg5 {[%emt 0:00:31]} 78. fxg5 {[%emt 0:00:05]} Kg8 {[%emt 0:00:29]} 79. gxh6 {[%emt 0:02:04]} Kh7 {[%emt 0:00:01]} 80. Rf5 {[%emt 0:02:32]} Rc7 {[%emt 0:00:15]} 81. Rhf3 {[%emt 0:02:30]} Nxh6 {[%emt 0:00:57]} 82. Rf8 {[%emt 0:00:10]} Rd7 {[%emt 0:00:49]} 83. Rg3 {[%emt 0:00:34]} Re5 {[%emt 0:00:22]} 84. Bxe5 {[%emt 0:02:40]} dxe5+ {[%emt 0:00:02]} 85. Kc2 {[%emt 0:00:09]} e4 {[%emt 0:00:52]} 86. Rf6 {[%emt 0:00:43]} Nf7 {[%emt 0:00:45]} 87. Rc6 {[%emt 0:02:33]} Ne5 {[%emt 0:00:21]} 88. Rxc5 {[%emt 0:00:09]} Re7 {[%emt 0:00:02]} 89. Ra5 {[%emt 0:01:32]} Kh6 {[%emt 0:00:21]} 90. Ra1 {[%emt 0:00:26]} 1-0

[Event "58th Akiba Rubinstein A 2022"]
[Site "Polanica-Zdroj"]
[Date "2022.08.17"]
[Round "5.3"]
[White "Razin, Vadim"]
[Black "Paprocki, Antoni"]
[Result "1-0"]
[ECO "A48"]
[WhiteElo "2428"]
[BlackElo "1981"]
[Annotator "TA"]
[PlyCount "39"]
[EventDate "2022.08.13"]
[EventCountry "POL"]
[SourceTitle "playchess.com"]
[Source "ChessBase"]
[SourceQuality "1"]
[TimeControl "40/5400+30:1800+30"]

{[%evp 12,39,27,27,21,23,43,50,48,60,60,57,91,88,116,80,141,152,148,156,439,427,406,411,541,509,515,515,1266,1129]} 1. d4 {[%emt 0:00:02]} Nf6 {[%emt 0:00:08]} 2. Nf3 {[%emt 0:00:05]} g6 {[%emt 0:00:13]} 3. Bg5 {[%emt 0:00:08][%cal Bc1g5,Bg5h4,Bh4g3][%mdl 32]} Bg7 {[%emt 0:00:09]} 4. Nbd2 {[%emt 0:00:06]} O-O {[%emt 0:00:07]} 5. e4 {[%emt 0:00:06]} d5 {[%emt 0:00:07]} 6. exd5 {[%emt 0:00:08]} Nxd5 {[%emt 0:00:22]} 7. c3 {[%emt 0:00:10]} h6 {[%emt 0:01:46] A48: 1 d4 Nf6 2 Nf3 g6: Torre, London and Colle Systems.} 8. Bh4 {[%emt 0:00:10]} Bf5 {[%emt 0:09:44][%cal Oc7c5]} 9. Bc4 {[%emt 0:04:53]} Nc6 {[%emt 0:03:26] White is slightly better.} 10. O-O {[%emt 0:01:33] [#]} Qd7 $146 {[%emt 0:15:55]} ({Predecessor:} 10... g5 11. Bg3 e6 12. Re1 Nf6 13. Ne5 Nxe5 14. Bxe5 c6 15. Bb3 Qe7 16. Qf3 Rad8 {0-1 (40) Uzuner,T (2169)-Erdogdu,M (2434) Kocaeli 2008}) 11. Re1 {[%emt 0:01:22]} Rfe8 {[%emt 0:00:29]} 12. Nb3 {[%emt 0:08:36]} b6 {[%emt 0:12:28] Inhibits Nc5.} 13. Bg3 {[%emt 0:00:32]} Be6 {[%emt 0:09:03]} (13... Bg4 $142) 14. Bb5 $16 {[%emt 0:02:30][%cal Bc4b5,Bb5a4,Ba4b3][%mdl 32] Strongly threatening c4.} a6 {[%emt 0:07:00]} 15. Ba4 {[%emt 0:00:55] c4 is the strong threat.} b5 {[%emt 0:09:04]} (15... Bg4 $16 {keeps fighting.} 16. h3 Bxf3 17. Qxf3 e6) 16. Nc5 $18 {[%emt 0:00:05]} Qc8 {[%emt 0:00:02]} 17. Bb3 {[%emt 0:06:34][%cal Oe1e6] Black must now prevent Rxe6!} Rd8 {[%emt 0:07:32] [#]} 18. Rxe6 {[%emt 0:03:30][%mdl 512] White is clearly winning.} fxe6 {[%emt 0:00:05]} 19. Qd3 {[%emt 0:00:09]} g5 {[%emt 0:00:58]} (19... Rd6 $142 20. Qxg6 Qe8 21. Qxe8+ Rxe8 22. Bxd6 exd6 23. Nxe6 Rxe6 24. Bxd5 Nd8) 20. Qg6 {[%emt 0:00:22] White took control after the opening.  Weighted Error Value: White=0.05 (flawless) /Black=0.52} 1-0